[Event "*** Titled Tuesday Blitz"]
[Site "Chess.com"]
[Date "2020.10.27"]
[Round "11"]
[White "Paladin61"]
[Black "redbaron8888"]
[Result "1/2-1/2"]
[WhiteElo "2589"]
[BlackElo "2512"]
[TimeControl "180+1"]
[EndTime "12:07:12 PDT"]
[Termination "Game drawn by repetition"]

1. b3 {[%clk 0:03:00.9]} 1... e5 {[%clk 0:02:59.4]} 2. Bb2 {[%clk 0:03:00.8]}
2... Nc6 {[%clk 0:02:59.4]} 3. e3 {[%clk 0:03:01.1]} 3... d6 {[%clk 0:02:59.8]}
4. Nf3 {[%clk 0:03:00.3]} 4... Bg4 {[%clk 0:02:58.7]} 5. h3 {[%clk 0:02:56.5]}
5... Bxf3 {[%clk 0:02:58.2]} 6. Qxf3 {[%clk 0:02:56]} 6... Qf6 {[%clk
0:02:59.1]} 7. Qd1 {[%clk 0:02:43.2]} 7... O-O-O {[%clk 0:02:56.8]} 8. g3 {[%clk
0:02:27.7]} 8... Nge7 {[%clk 0:02:50.5]} 9. Bg2 {[%clk 0:02:26.7]} 9... d5
{[%clk 0:02:48.8]} 10. d3 {[%clk 0:02:22.7]} 10... h5 {[%clk 0:02:45.7]} 11. Nd2
{[%clk 0:02:21.4]} 11... Kb8 {[%clk 0:02:42.3]} 12. a3 {[%clk 0:02:21.2]} 12...
h4 {[%clk 0:02:38.3]} 13. g4 {[%clk 0:02:20.7]} 13... Qg6 {[%clk 0:02:33.9]} 14.
Qe2 {[%clk 0:02:16.4]} 14... f5 {[%clk 0:02:32.7]} 15. O-O-O {[%clk 0:02:15.2]}
15... Qf7 {[%clk 0:02:19.3]} 16. b4 {[%clk 0:02:12.4]} 16... a6 {[%clk
0:02:17.4]} 17. Nb3 {[%clk 0:02:11.1]} 17... Nc8 {[%clk 0:02:10.1]} 18. Rhf1
{[%clk 0:01:50.5]} 18... f4 {[%clk 0:02:06]} 19. exf4 {[%clk 0:01:37]} 19...
exf4 {[%clk 0:01:49.3]} 20. Rfe1 {[%clk 0:01:36.2]} 20... Nb6 {[%clk 0:01:33.2]}
21. Kb1 {[%clk 0:01:26.6]} 21... Rh6 {[%clk 0:01:29.6]} 22. Qf3 {[%clk
0:01:10.6]} 22... Na4 {[%clk 0:01:24]} 23. Ba1 {[%clk 0:01:10.2]} 23... a5
{[%clk 0:01:17.2]} 24. b5 {[%clk 0:00:50.5]} 24... Na7 {[%clk 0:01:16.1]} 25. c4
{[%clk 0:00:50.7]} 25... Bxa3 {[%clk 0:01:10.7]} 26. Re5 {[%clk 0:00:41.4]}
26... Nb6 {[%clk 0:00:46.7]} 27. Nxa5 {[%clk 0:00:36.8]} 27... Bd6 {[%clk
0:00:40.9]} 28. Rf5 {[%clk 0:00:31]} 28... Qe7 {[%clk 0:00:36.5]} 29. Rxd5
{[%clk 0:00:18.4]} 29... Nxd5 {[%clk 0:00:31.6]} 30. Qxd5 {[%clk 0:00:18.3]}
30... c6 {[%clk 0:00:31.9]} 31. bxc6 {[%clk 0:00:17.7]} 31... Bc7 {[%clk
0:00:29.6]} 32. Qf3 {[%clk 0:00:05.5]} 32... Qb4+ {[%clk 0:00:27.5]} 33. Kc2
{[%clk 0:00:05.2]} 33... Bxa5 {[%clk 0:00:21.4]} 34. Be5+ {[%clk 0:00:05.4]}
34... Bc7 {[%clk 0:00:18.1]} 35. Bxc7+ {[%clk 0:00:05.3]} 35... Kxc7 {[%clk
0:00:18.7]} 36. Qxf4+ {[%clk 0:00:05.7]} 36... Rhd6 {[%clk 0:00:18.1]} 37. Qf7+
{[%clk 0:00:05.7]} 37... R8d7 {[%clk 0:00:15.6]} 38. cxd7 {[%clk 0:00:05.8]}
38... Rxd7 {[%clk 0:00:16.5]} 39. Qf4+ {[%clk 0:00:04.8]} 39... Kc8 {[%clk
0:00:14.1]} 40. Qd2 {[%clk 0:00:03.9]} 40... Qa4+ {[%clk 0:00:14.2]} 41. Kb1
{[%clk 0:00:04]} 41... Qb3+ {[%clk 0:00:13.8]} 42. Kc1 {[%clk 0:00:03.8]} 42...
Nc6 {[%clk 0:00:13]} 43. Bxc6 {[%clk 0:00:03.1]} 43... bxc6 {[%clk 0:00:13.9]}
44. Qb2 {[%clk 0:00:03.5]} 44... Qa4 {[%clk 0:00:12.6]} 45. Qc2 {[%clk
0:00:03.8]} 45... Qa3+ {[%clk 0:00:12.4]} 46. Qb2 {[%clk 0:00:04.2]} 46... Qa4
{[%clk 0:00:12.4]} 47. Kd2 {[%clk 0:00:03.5]} 47... Qxc4 {[%clk 0:00:11.7]} 48.
Qc3 {[%clk 0:00:03.1]} 48... Qf4+ {[%clk 0:00:11.5]} 49. Kc2 {[%clk 0:00:03.1]}
49... Qxf2+ {[%clk 0:00:11.5]} 50. Rd2 {[%clk 0:00:03.6]} 50... Qf6 {[%clk
0:00:11.2]} 51. Qc4 {[%clk 0:00:03.2]} 51... Qd6 {[%clk 0:00:10.7]} 52. Qa6+
{[%clk 0:00:03]} 52... Rb7 {[%clk 0:00:10.7]} 53. Qc4 {[%clk 0:00:02.3]} 53...
Kb8 {[%clk 0:00:10.4]} 54. Kd1 {[%clk 0:00:02.2]} 54... Qe7 {[%clk 0:00:08.8]}
55. Kc2 {[%clk 0:00:02.2]} 55... Qf6 {[%clk 0:00:08.4]} 56. Qg8+ {[%clk
0:00:02]} 56... Ka7 {[%clk 0:00:08.1]} 57. Qa2+ {[%clk 0:00:02.9]} 57... Kb8
{[%clk 0:00:08]} 58. Re2 {[%clk 0:00:03.2]} 58... Qd8 {[%clk 0:00:05.7]} 59. Re4
{[%clk 0:00:02.9]} 59... Rd7 {[%clk 0:00:05.5]} 60. Rb4+ {[%clk 0:00:02.2]}
60... Rb7 {[%clk 0:00:05.6]} 61. Re4 {[%clk 0:00:02]} 61... Rc7 {[%clk
0:00:05.6]} 62. Rb4+ {[%clk 0:00:02.2]} 62... Kc8 {[%clk 0:00:06.5]} 63. Rc4
{[%clk 0:00:03.1]} 63... Qd6 {[%clk 0:00:06.2]} 64. Qa6+ {[%clk 0:00:03.2]}
64... Kd7 {[%clk 0:00:06.2]} 65. Qa8 {[%clk 0:00:03.5]} 65... Qh2+ {[%clk
0:00:06.5]} 66. Kc3 {[%clk 0:00:02.9]} 66... Qg1 {[%clk 0:00:06.9]} 67. Kc2
{[%clk 0:00:03.8]} 67... Qf2+ {[%clk 0:00:06.8]} 68. Kc3 {[%clk 0:00:03.3]}
68... Qe1+ {[%clk 0:00:07.1]} 69. Kc2 {[%clk 0:00:03.5]} 69... Qe2+ {[%clk
0:00:07.5]} 70. Kc3 {[%clk 0:00:03.9]} 70... Qe1+ {[%clk 0:00:07.7]} 71. Kc2
{[%clk 0:00:04.4]} 71... Qe2+ {[%clk 0:00:08.2]} 72. Kc3 {[%clk 0:00:04.8]}
72... Qe1+ {[%clk 0:00:08.5]} 1/2-1/2

[Event "*** Titled Tuesday Blitz"]
[Site "Chess.com"]
[Date "2020.10.27"]
[Round "11"]
[White "paulrusan"]
[Black "pfalcon1949"]
[Result "1-0"]
[WhiteElo "2221"]
[BlackElo "2018"]
[TimeControl "180+1"]
[EndTime "12:07:18 PDT"]
[Termination "paulrusan won by checkmate"]

1. e4 {[%clk 0:03:00.9]} 1... c6 {[%clk 0:02:58.2]} 2. d4 {[%clk 0:03:00.6]}
2... d5 {[%clk 0:02:58.4]} 3. f3 {[%clk 0:03:01.1]} 3... dxe4 {[%clk 0:02:57.6]}
4. fxe4 {[%clk 0:03:01.5]} 4... e5 {[%clk 0:02:52.3]} 5. Nf3 {[%clk 0:03:01.5]}
5... Bg4 {[%clk 0:02:52.2]} 6. Bc4 {[%clk 0:03:01.1]} 6... Nd7 {[%clk
0:02:50.7]} 7. c3 {[%clk 0:03:00.1]} 7... Bd6 {[%clk 0:02:47.2]} 8. O-O {[%clk
0:02:57.6]} 8... Ngf6 {[%clk 0:02:46.1]} 9. Qd3 {[%clk 0:02:51]} 9... O-O {[%clk
0:02:44.5]} 10. Bg5 {[%clk 0:02:50.9]} 10... b5 {[%clk 0:02:25.8]} 11. Bb3
{[%clk 0:02:45]} 11... a6 {[%clk 0:02:19.1]} 12. a4 {[%clk 0:02:33.8]} 12... Bc7
{[%clk 0:01:52.3]} 13. Nbd2 {[%clk 0:02:28.9]} 13... Nc5 {[%clk 0:01:47.2]} 14.
Qc2 {[%clk 0:02:22.6]} 14... Nxb3 {[%clk 0:01:46.3]} 15. Nxb3 {[%clk 0:02:17.4]}
15... exd4 {[%clk 0:01:37]} 16. cxd4 {[%clk 0:02:10.9]} 16... h6 {[%clk
0:01:27.2]} 17. Bxf6 {[%clk 0:01:59]} 17... Qxf6 {[%clk 0:01:26.5]} 18. Ne5
{[%clk 0:01:58.7]} 18... Qh4 {[%clk 0:01:15.2]} 19. g3 {[%clk 0:01:38.5]} 19...
Qh3 {[%clk 0:01:09.7]} 20. Qxc6 {[%clk 0:01:20]} 20... Bxe5 {[%clk 0:01:02.3]}
21. dxe5 {[%clk 0:01:17.9]} 21... Rac8 {[%clk 0:01:02.6]} 22. Qb6 {[%clk
0:00:59.2]} 22... Rc2 {[%clk 0:00:55.1]} 23. Rf2 {[%clk 0:00:59.4]} 23... Rfc8
{[%clk 0:00:46.7]} 24. axb5 {[%clk 0:00:55.9]} 24... axb5 {[%clk 0:00:44.7]} 25.
Raf1 {[%clk 0:00:38.7]} 25... Be2 {[%clk 0:00:34.4]} 26. Re1 {[%clk 0:00:33.7]}
26... Bc4 {[%clk 0:00:25.3]} 27. Na5 {[%clk 0:00:27.5]} 27... Rxf2 {[%clk
0:00:23.5]} 28. Qxf2 {[%clk 0:00:27]} 28... Rd8 {[%clk 0:00:19.2]} 29. Nxc4
{[%clk 0:00:24.3]} 29... bxc4 {[%clk 0:00:20.1]} 30. Qf5 {[%clk 0:00:24.5]}
30... Qxf5 {[%clk 0:00:16.5]} 31. exf5 {[%clk 0:00:24.3]} 31... Rd2 {[%clk
0:00:16.5]} 32. Re4 {[%clk 0:00:23.4]} 32... Rxb2 {[%clk 0:00:15.8]} 33. Rxc4
{[%clk 0:00:23.1]} 33... Re2 {[%clk 0:00:16.4]} 34. Rc5 {[%clk 0:00:21.2]} 34...
Kf8 {[%clk 0:00:15.6]} 35. g4 {[%clk 0:00:21.3]} 35... Re4 {[%clk 0:00:14.5]}
36. h3 {[%clk 0:00:20.5]} 36... h5 {[%clk 0:00:12.1]} 37. g5 {[%clk 0:00:18.1]}
37... Rf4 {[%clk 0:00:11.1]} 38. f6 {[%clk 0:00:18.2]} 38... gxf6 {[%clk
0:00:10.7]} 39. gxf6 {[%clk 0:00:18.5]} 39... Kg8 {[%clk 0:00:10.1]} 40. Kg2
{[%clk 0:00:18.3]} 40... Kh7 {[%clk 0:00:10.3]} 41. Kg3 {[%clk 0:00:16.9]} 41...
Rf5 {[%clk 0:00:09.7]} 42. h4 {[%clk 0:00:09.3]} 42... Kg6 {[%clk 0:00:10.2]}
43. Rd5 {[%clk 0:00:09.4]} 43... Rf1 {[%clk 0:00:09.7]} 44. Rd8 {[%clk 0:00:08]}
44... Rg1+ {[%clk 0:00:10]} 45. Kf4 {[%clk 0:00:07.5]} 45... Re1 {[%clk
0:00:09.7]} 46. Rg8+ {[%clk 0:00:06.5]} 46... Kh7 {[%clk 0:00:10.1]} 47. Rg7+
{[%clk 0:00:06.6]} 47... Kh8 {[%clk 0:00:10.8]} 48. Rxf7 {[%clk 0:00:07]} 48...
Rf1+ {[%clk 0:00:11.4]} 49. Ke4 {[%clk 0:00:06.9]} 49... Re1+ {[%clk 0:00:12.3]}
50. Kf5 {[%clk 0:00:07.2]} 50... Kg8 {[%clk 0:00:11.9]} 51. Rg7+ {[%clk
0:00:06.9]} 51... Kf8 {[%clk 0:00:11.3]} 52. Ke6 {[%clk 0:00:07.2]} 52... Rf1
{[%clk 0:00:11.8]} 53. Ra7 {[%clk 0:00:06.7]} 53... Kg8 {[%clk 0:00:11.7]} 54.
Ra8+ {[%clk 0:00:06.7]} 54... Kh7 {[%clk 0:00:11.6]} 55. Ke7 {[%clk 0:00:05.6]}
55... Rf5 {[%clk 0:00:10.5]} 56. e6 {[%clk 0:00:05.1]} 56... Kg6 {[%clk
0:00:09.2]} 57. f7 {[%clk 0:00:05.2]} 57... Kg7 {[%clk 0:00:08.7]} 58. Rg8+
{[%clk 0:00:04.6]} 58... Kh7 {[%clk 0:00:08.9]} 59. f8=Q {[%clk 0:00:04.7]}
59... Rxf8 {[%clk 0:00:09.4]} 60. Rxf8 {[%clk 0:00:05]} 60... Kg7 {[%clk
0:00:09.7]} 61. Rf5 {[%clk 0:00:05.4]} 61... Kg6 {[%clk 0:00:10]} 62. Rxh5
{[%clk 0:00:05.6]} 62... Kxh5 {[%clk 0:00:10.3]} 63. Kf6 {[%clk 0:00:05.7]}
63... Kxh4 {[%clk 0:00:10.5]} 64. e7 {[%clk 0:00:06.4]} 64... Kg4 {[%clk
0:00:11.4]} 65. e8=Q {[%clk 0:00:06.5]} 65... Kf4 {[%clk 0:00:12.3]} 66. Qb5
{[%clk 0:00:06.3]} 66... Kf3 {[%clk 0:00:12.6]} 67. Qc4 {[%clk 0:00:06.3]} 67...
Ke3 {[%clk 0:00:12.6]} 68. Ke5 {[%clk 0:00:06.2]} 68... Kf3 {[%clk 0:00:12.6]}
69. Qd4 {[%clk 0:00:06.3]} 69... Kg3 {[%clk 0:00:12.5]} 70. Qf4+ {[%clk
0:00:06.6]} 70... Kh3 {[%clk 0:00:12.3]} 71. Qg5 {[%clk 0:00:06.5]} 71... Kh2
{[%clk 0:00:12.1]} 72. Kf4 {[%clk 0:00:07]} 72... Kh1 {[%clk 0:00:12.6]} 73. Kf3
{[%clk 0:00:07.4]} 73... Kh2 {[%clk 0:00:12.3]} 74. Qg2# {[%clk 0:00:07.2]} 1-0

[Event "*** Titled Tuesday Blitz"]
[Site "Chess.com"]
[Date "2020.10.27"]
[Round "11"]
[White "Ajedrez_con_German"]
[Black "Triumphmate"]
[Result "1-0"]
[WhiteElo "2541"]
[BlackElo "2399"]
[TimeControl "180+1"]
[EndTime "12:07:35 PDT"]
[Termination "Ajedrez_con_German won by checkmate"]

1. Nf3 {[%clk 0:03:00.9]} 1... d5 {[%clk 0:03:00]} 2. d4 {[%clk 0:03:00.4]} 2...
e6 {[%clk 0:03:00.9]} 3. Bf4 {[%clk 0:02:53.8]} 3... Be7 {[%clk 0:03:01.8]} 4.
e3 {[%clk 0:02:54]} 4... f5 {[%clk 0:03:01]} 5. Bd3 {[%clk 0:02:53.8]} 5... Nf6
{[%clk 0:03:01.9]} 6. h3 {[%clk 0:02:53.6]} 6... O-O {[%clk 0:03:02.2]} 7. O-O
{[%clk 0:02:53.9]} 7... c5 {[%clk 0:03:02.6]} 8. c3 {[%clk 0:02:54.1]} 8... Nc6
{[%clk 0:03:02.9]} 9. Nbd2 {[%clk 0:02:54.3]} 9... Ne4 {[%clk 0:02:59.6]} 10.
Ne5 {[%clk 0:02:53.7]} 10... Nxe5 {[%clk 0:02:59.6]} 11. Bxe5 {[%clk 0:02:53.9]}
11... Bd6 {[%clk 0:02:59.9]} 12. Bxd6 {[%clk 0:02:52.5]} 12... Qxd6 {[%clk
0:03:00.8]} 13. Bxe4 {[%clk 0:02:42.8]} 13... fxe4 {[%clk 0:03:00]} 14. f3
{[%clk 0:02:41.8]} 14... exf3 {[%clk 0:02:52.2]} 15. Nxf3 {[%clk 0:02:41.6]}
15... b6 {[%clk 0:02:52]} 16. Qe2 {[%clk 0:02:33]} 16... a5 {[%clk 0:02:51.8]}
17. Ne5 {[%clk 0:02:24]} 17... Ba6 {[%clk 0:02:48.3]} 18. Rxf8+ {[%clk 0:02:21]}
18... Qxf8 {[%clk 0:02:49.2]} 19. Qg4 {[%clk 0:02:10.8]} 19... Qe7 {[%clk
0:02:42.3]} 20. Re1 {[%clk 0:01:42.9]} 20... Rf8 {[%clk 0:02:38]} 21. Nf3 {[%clk
0:01:38.7]} 21... Bd3 {[%clk 0:02:28.5]} 22. Ne5 {[%clk 0:01:30.4]} 22... Bb5
{[%clk 0:02:25.1]} 23. Nf3 {[%clk 0:01:26.2]} 23... Qf6 {[%clk 0:02:23]} 24. Qg3
{[%clk 0:01:23]} 24... Bd3 {[%clk 0:02:13.7]} 25. Qe5 {[%clk 0:01:20.6]} 25...
Qg6 {[%clk 0:02:00.9]} 26. Qg5 {[%clk 0:01:12.2]} 26... Qf7 {[%clk 0:01:58.7]}
27. Qg3 {[%clk 0:01:05.5]} 27... Qf6 {[%clk 0:01:39.9]} 28. Qe5 {[%clk
0:00:55.8]} 28... a4 {[%clk 0:01:31.9]} 29. a3 {[%clk 0:00:54.1]} 29... h6
{[%clk 0:01:29.1]} 30. Qg3 {[%clk 0:00:47.2]} 30... Kh7 {[%clk 0:01:20.2]} 31.
Ne5 {[%clk 0:00:46.9]} 31... Be4 {[%clk 0:01:20.3]} 32. Nd7 {[%clk 0:00:42.5]}
32... Qf7 {[%clk 0:01:13.6]} 33. Nxf8+ {[%clk 0:00:42.1]} 33... Qxf8 {[%clk
0:01:14.5]} 34. Rf1 {[%clk 0:00:41.4]} 34... Qe8 {[%clk 0:01:13.2]} 35. Qf4
{[%clk 0:00:36]} 35... Qb5 {[%clk 0:01:10.1]} 36. Qf2 {[%clk 0:00:32.6]} 36...
Qd3 {[%clk 0:01:07.5]} 37. Kh2 {[%clk 0:00:32.5]} 37... Bf5 {[%clk 0:01:00.8]}
38. Kg1 {[%clk 0:00:30.2]} 38... Qc4 {[%clk 0:00:53.5]} 39. Qg3 {[%clk
0:00:27.3]} 39... b5 {[%clk 0:00:43.7]} 40. Rf2 {[%clk 0:00:23.5]} 40... b4
{[%clk 0:00:43.5]} 41. cxb4 {[%clk 0:00:22.1]} 41... cxb4 {[%clk 0:00:44.4]} 42.
axb4 {[%clk 0:00:22.6]} 42... Qxb4 {[%clk 0:00:44.3]} 43. Kh2 {[%clk 0:00:19.2]}
43... Qb3 {[%clk 0:00:43.4]} 44. Qf3 {[%clk 0:00:16.6]} 44... Be4 {[%clk
0:00:38]} 45. Qf4 {[%clk 0:00:16.5]} 45... Bg6 {[%clk 0:00:33.1]} 46. Qg3 {[%clk
0:00:15.6]} 46... a3 {[%clk 0:00:32.5]} 47. bxa3 {[%clk 0:00:15.1]} 47... Qxa3
{[%clk 0:00:33.4]} 48. Qf4 {[%clk 0:00:14.7]} 48... Qb3 {[%clk 0:00:33.2]} 49.
Rf3 {[%clk 0:00:14]} 49... Qc2 {[%clk 0:00:31.8]} 50. Rg3 {[%clk 0:00:13.9]}
50... Qd3 {[%clk 0:00:29.1]} 51. Qe5 {[%clk 0:00:12.7]} 51... Qa6 {[%clk
0:00:23.7]} 52. Rf3 {[%clk 0:00:10.4]} 52... Qb6 {[%clk 0:00:20.8]} 53. Rg3
{[%clk 0:00:10.3]} 53... Qc6 {[%clk 0:00:19.7]} 54. h4 {[%clk 0:00:10.7]} 54...
h5 {[%clk 0:00:19.5]} 55. Qg5 {[%clk 0:00:09.5]} 55... Qc2 {[%clk 0:00:19.4]}
56. Qf4 {[%clk 0:00:08.3]} 56... Be4 {[%clk 0:00:19.3]} 57. Qg5 {[%clk
0:00:07.4]} 57... Bg6 {[%clk 0:00:19.7]} 58. Rf3 {[%clk 0:00:06.5]} 58... Be4
{[%clk 0:00:19.3]} 59. Qxh5+ {[%clk 0:00:06.5]} 59... Kg8 {[%clk 0:00:18.9]} 60.
Rg3 {[%clk 0:00:06.7]} 60... Qf2 {[%clk 0:00:15.9]} 61. Qg5 {[%clk 0:00:06.7]}
61... Qf7 {[%clk 0:00:14.7]} 62. Rg4 {[%clk 0:00:06.3]} 62... Bf5 {[%clk
0:00:14.6]} 63. Rf4 {[%clk 0:00:06.5]} 63... Qc7 {[%clk 0:00:14.8]} 64. Qg3
{[%clk 0:00:05.6]} 64... Qe7 {[%clk 0:00:14.6]} 65. Rf3 {[%clk 0:00:04.8]} 65...
Be4 {[%clk 0:00:15]} 66. Rf4 {[%clk 0:00:04.9]} 66... Bf5 {[%clk 0:00:15.5]} 67.
Qg5 {[%clk 0:00:05.1]} 67... Qc7 {[%clk 0:00:15.3]} 68. g4 {[%clk 0:00:05]}
68... Qc2+ {[%clk 0:00:14.3]} 69. Kg3 {[%clk 0:00:05.4]} 69... Be4 {[%clk
0:00:13.7]} 70. Qd8+ {[%clk 0:00:05.2]} 70... Kh7 {[%clk 0:00:14.1]} 71. Rf8
{[%clk 0:00:04.5]} 71... Qg2+ {[%clk 0:00:14.1]} 72. Kf4 {[%clk 0:00:05.1]}
72... Qh2+ {[%clk 0:00:14.3]} 73. Kg5 {[%clk 0:00:05.2]} 73... g6 {[%clk
0:00:03.2]} 74. Rh8+ {[%clk 0:00:04.8]} 74... Kg7 {[%clk 0:00:04.1]} 75. Qf8#
{[%clk 0:00:05.4]} 1-0

[Event "*** Titled Tuesday Blitz"]
[Site "Chess.com"]
[Date "2020.10.27"]
[Round "11"]
[White "MVM2008"]
[Black "NotFischer"]
[Result "1-0"]
[WhiteElo "2235"]
[BlackElo "2137"]
[TimeControl "180+1"]
[EndTime "12:07:52 PDT"]
[Termination "MVM2008 won by checkmate"]

1. e4 {[%clk 0:03:00.9]} 1... d5 {[%clk 0:02:59.8]} 2. exd5 {[%clk 0:03:00.7]}
2... Nf6 {[%clk 0:02:59.9]} 3. Nf3 {[%clk 0:02:59]} 3... Bg4 {[%clk 0:02:59.5]}
4. d4 {[%clk 0:02:53]} 4... Qxd5 {[%clk 0:02:58.9]} 5. Nc3 {[%clk 0:02:52]} 5...
Bxf3 {[%clk 0:02:24.2]} 6. Nxd5 {[%clk 0:02:41]} 6... Bxd1 {[%clk 0:02:24.1]} 7.
Nxf6+ {[%clk 0:02:16]} 7... exf6 {[%clk 0:02:24.1]} 8. Kxd1 {[%clk 0:02:15.5]}
8... Nc6 {[%clk 0:02:23]} 9. c3 {[%clk 0:02:13.3]} 9... O-O-O {[%clk 0:02:07.7]}
10. Bb5 {[%clk 0:02:08]} 10... Ne5 {[%clk 0:02:00.1]} 11. Kc2 {[%clk 0:02:01.6]}
11... Ng6 {[%clk 0:01:47.1]} 12. h4 {[%clk 0:01:41.2]} 12... Bd6 {[%clk
0:01:46.4]} 13. g3 {[%clk 0:01:39]} 13... c6 {[%clk 0:01:36.3]} 14. Bd3 {[%clk
0:01:35.3]} 14... Ne7 {[%clk 0:01:35.8]} 15. Bd2 {[%clk 0:01:32.4]} 15... g6
{[%clk 0:01:35.4]} 16. Rae1 {[%clk 0:01:28.5]} 16... Rhe8 {[%clk 0:01:30.1]} 17.
h5 {[%clk 0:01:20.4]} 17... Nd5 {[%clk 0:01:19.6]} 18. hxg6 {[%clk 0:01:13.9]}
18... Rxe1 {[%clk 0:01:19]} 19. Bxe1 {[%clk 0:01:08.2]} 19... hxg6 {[%clk
0:01:18.6]} 20. Bd2 {[%clk 0:01:06.2]} 20... f5 {[%clk 0:01:10.9]} 21. Rh7
{[%clk 0:00:49.3]} 21... Rd7 {[%clk 0:01:10.8]} 22. Bc4 {[%clk 0:00:38.1]} 22...
b5 {[%clk 0:00:47.6]} 23. Bxd5 {[%clk 0:00:35]} 23... cxd5 {[%clk 0:00:48.5]}
24. Rh1 {[%clk 0:00:23]} 24... Kc7 {[%clk 0:00:48.6]} 25. Re1 {[%clk 0:00:21.2]}
25... Re7 {[%clk 0:00:47.6]} 26. Rxe7+ {[%clk 0:00:19.2]} 26... Bxe7 {[%clk
0:00:48.5]} 27. Bf4+ {[%clk 0:00:16.4]} 27... Kd7 {[%clk 0:00:48.4]} 28. Kb3
{[%clk 0:00:14.2]} 28... a6 {[%clk 0:00:44.9]} 29. a4 {[%clk 0:00:05.4]} 29...
Kc6 {[%clk 0:00:43.8]} 30. axb5+ {[%clk 0:00:04.6]} 30... Kxb5 {[%clk
0:00:43.9]} 31. Be3 {[%clk 0:00:03.3]} 31... a5 {[%clk 0:00:43.5]} 32. Kc2
{[%clk 0:00:02.8]} 32... a4 {[%clk 0:00:43.6]} 33. Kb1 {[%clk 0:00:02.8]} 33...
Kc4 {[%clk 0:00:44]} 34. Kc2 {[%clk 0:00:03]} 34... Bd8 {[%clk 0:00:36.1]} 35.
Bc1 {[%clk 0:00:02.6]} 35... Bc7 {[%clk 0:00:34.2]} 36. Bd2 {[%clk 0:00:02.6]}
36... Bd6 {[%clk 0:00:34.2]} 37. Bf4 {[%clk 0:00:02.7]} 37... Bxf4 {[%clk
0:00:23.5]} 38. gxf4 {[%clk 0:00:02.7]} 38... f6 {[%clk 0:00:23.6]} 39. f3
{[%clk 0:00:02.4]} 39... g5 {[%clk 0:00:23.8]} 40. Kb1 {[%clk 0:00:01.7]} 40...
Kd3 {[%clk 0:00:23.5]} 41. Ka2 {[%clk 0:00:01.6]} 41... Ke3 {[%clk 0:00:20.9]}
42. Ka3 {[%clk 0:00:02]} 42... Kxf3 {[%clk 0:00:20.6]} 43. Kxa4 {[%clk
0:00:02.9]} 43... g4 {[%clk 0:00:20.9]} 44. b4 {[%clk 0:00:03.8]} 44... g3
{[%clk 0:00:21.4]} 45. b5 {[%clk 0:00:04.7]} 45... g2 {[%clk 0:00:22.3]} 46. b6
{[%clk 0:00:05.2]} 46... g1=Q {[%clk 0:00:23.2]} 47. b7 {[%clk 0:00:05.8]} 47...
Kxf4 {[%clk 0:00:21.8]} 48. b8=Q+ {[%clk 0:00:05.7]} 48... Ke4 {[%clk
0:00:21.6]} 49. Qe8+ {[%clk 0:00:04.3]} 49... Kd3 {[%clk 0:00:21.8]} 50. Qb5+
{[%clk 0:00:04.4]} 50... Ke3 {[%clk 0:00:18.9]} 51. Qxd5 {[%clk 0:00:04.4]}
51... Qa1+ {[%clk 0:00:17.3]} 52. Kb3 {[%clk 0:00:04.2]} 52... Qb1+ {[%clk
0:00:17]} 53. Ka4 {[%clk 0:00:04.3]} 53... Qc2+ {[%clk 0:00:16.4]} 54. Kb5
{[%clk 0:00:04.1]} 54... Qd3+ {[%clk 0:00:14.4]} 55. c4 {[%clk 0:00:03.9]} 55...
Qxd4 {[%clk 0:00:13.2]} 56. Qxf5 {[%clk 0:00:04]} 56... Kd2 {[%clk 0:00:09.9]}
57. Qd5 {[%clk 0:00:03.4]} 57... Kc3 {[%clk 0:00:05.8]} 58. Qxd4+ {[%clk
0:00:03.1]} 58... Kxd4 {[%clk 0:00:06.7]} 59. c5 {[%clk 0:00:04]} 59... Kd5
{[%clk 0:00:07.3]} 60. c6 {[%clk 0:00:04.1]} 60... Kd6 {[%clk 0:00:07.5]} 61.
Kb6 {[%clk 0:00:04.5]} 61... f5 {[%clk 0:00:07.6]} 62. c7 {[%clk 0:00:04.8]}
62... f4 {[%clk 0:00:08.5]} 63. c8=Q {[%clk 0:00:04.6]} 63... f3 {[%clk
0:00:09.4]} 64. Qc3 {[%clk 0:00:04.7]} 64... f2 {[%clk 0:00:08.4]} 65. Qf3
{[%clk 0:00:04.5]} 65... f1=Q {[%clk 0:00:09.1]} 66. Qxf1 {[%clk 0:00:04.6]}
66... Kd5 {[%clk 0:00:09.6]} 67. Qf4 {[%clk 0:00:04]} 67... Ke6 {[%clk
0:00:10.2]} 68. Qb4 {[%clk 0:00:04.9]} 68... Kd5 {[%clk 0:00:10.4]} 69. Qc5+
{[%clk 0:00:04.4]} 69... Ke6 {[%clk 0:00:10]} 70. Kb5 {[%clk 0:00:05.3]} 70...
Kd7 {[%clk 0:00:10.4]} 71. Kc4 {[%clk 0:00:06.2]} 71... Ke6 {[%clk 0:00:11.1]}
72. Kd4 {[%clk 0:00:07]} 72... Kd7 {[%clk 0:00:12]} 73. Qd5+ {[%clk 0:00:07.8]}
73... Kc7 {[%clk 0:00:12.3]} 74. Ke5 {[%clk 0:00:08.7]} 74... Kb6 {[%clk
0:00:12.2]} 75. Kd6 {[%clk 0:00:08.1]} 75... Ka6 {[%clk 0:00:11.8]} 76. Qb3
{[%clk 0:00:08.2]} 76... Ka5 {[%clk 0:00:12]} 77. Kc6 {[%clk 0:00:08.2]} 77...
Ka6 {[%clk 0:00:12.9]} 78. Qb6# {[%clk 0:00:08]} 1-0